[Event "4NCL Div 2 2024-25"]
[Site "England"]
[Date "2025.04.05"]
[Round "7.1"]
[White "Claridge-Hansen, William"]
[Black "Kanyamarala, Tarun"]
[Result "1/2-1/2"]
[Annotator "RC"]
[ECO "A11"]
[WhiteElo "2373"]
[BlackElo "2386"]
[PlyCount "40"]
[EventDate "2024.11.23"]
[EventType "team-tourn"]
[EventCountry "ENG"]
[SourceTitle "playchess.com"]
[Source "ChessBase"]
[SourceQuality "1"]
[TimeControl "40/6000+30:3000+30"]

1. Nf3 {[%emt 0:10:05]} d5 {[%emt 0:10:10]} 2. e3 {[%emt 0:00:16]} Nf6 {[%emt 0:00:12]} 3. c4 {[%emt 0:00:31]} e6 {[%emt 0:00:08]} 4. Nc3 {[%emt 0:00:24]} Bd6 {[%emt 0:00:20]} 5. b3 {[%emt 0:02:28]} c6 {[%emt 0:00:42]} 6. Qc2 {[%emt 0:05:49]} O-O {[%emt 0:00:58]} 7. Bb2 {[%emt 0:01:19]} e5 {[%emt 0:02:09]} 8. cxd5 {[%emt 0:05:27]} cxd5 {[%emt 0:00:12]} 9. Nb5 {[%emt 0:01:23]} Nc6 {[%emt 1:30:09]} 10. Nxd6 {[%emt 0:01:06]} Qxd6 {[%emt 0:00:00]} 11. Rc1 {[%emt 0:17:11]} Bg4 {[%emt 0:00:00]} 12. h3 {[%emt 0:24:39]} Bd7 {[%emt 0:00:00]} 13. Be2 {[%emt 0:04:49]} Rac8 {[%emt 0:00:00]} 14. Qb1 {[%emt 0:01:10]} d4 {[%emt 0:00:00]} 15. O-O {[%emt 0:01:33]} Rfd8 {[%emt 0:00:00]} 16. exd4 {[%emt 0:07:53]} e4 {[%emt 0:00:00]} 17. Ne5 {[%emt 0:01:42]} Nxd4 {[%emt 0:00:00]} 18. Bxd4 {[%emt 0:00:17]} Qxd4 {[%emt 0:00:00]} 19. Nxd7 {[%emt 0:00:22]} Qxd7 {[%emt 0:00:00]} 20. Rxc8 {[%emt 0:00:45]} Rxc8 {[%emt 0:00:00]} 1/2-1/2

[Event "4NCL Div 2 2024-25"]
[Site "England"]
[Date "2025.04.05"]
[Round "7.2"]
[White "Navaratnam, Rohan Shan Tze"]
[Black "Hobson, Kenneth"]
[Result "0-1"]
[Annotator "ChessBase"]
[ECO "E11"]
[WhiteElo "2306"]
[BlackElo "2152"]
[PlyCount "90"]
[EventDate "2024.11.23"]
[EventType "team-tourn"]
[EventCountry "ENG"]
[SourceTitle "playchess.com"]
[Source "ChessBase"]
[SourceQuality "1"]
[TimeControl "40/6000+30:3000+30"]

1. d4 {[%emt 0:10:08]} Nf6 {[%emt 0:10:10]} 2. Nf3 {[%emt 0:00:05]} d5 {[%emt 0:01:03]} 3. c4 {[%emt 0:00:11]} e6 {[%emt 0:00:08]} 4. g3 {[%emt 0:00:45]} Bb4+ {[%emt 0:01:46]} 5. Bd2 {[%emt 0:00:21]} Be7 {[%emt 0:00:07]} 6. Bg2 {[%emt 0:00:36]} O-O {[%emt 0:03:51]} 7. O-O {[%emt 0:00:11]} Nbd7 {[%emt 0:00:25]} 8. Qb3 {[%emt 0:05:20]} a5 {[%emt 0:04:28]} 9. Nc3 {[%emt 0:02:36]} c6 {[%emt 0:03:20]} 10. Rac1 {[%emt 0:03:38]} a4 {[%emt 0:10:35]} 11. Qc2 {[%emt 0:01:28]} dxc4 {[%emt 0:01:48]} 12. Nxa4 {[%emt 0:00:26]} b5 {[%emt 0:02:13]} 13. Nc3 {[%emt 0:00:30]} Bb7 {[%emt 0:05:37]} 14. e4 {[%emt 0:09:22]} b4 {[%emt 0:06:08]} 15. Nd1 {[%emt 0:07:29]} c5 {[%emt 0:03:38]} 16. e5 {[%emt 0:07:15]} Nd5 {[%emt 0:02:57]} 17. Ne3 {[%emt 0:07:26]} Nxe3 {[%emt 0:02:45]} 18. Bxe3 {[%emt 0:00:53]} Rxa2 {[%emt 0:03:12]} 19. Qxc4 {[%emt 0:03:30]} Bd5 {[%emt 0:01:28]} 20. Qc2 {[%emt 0:07:45]} c4 {[%emt 0:04:44]} 21. Qb1 {[%emt 0:06:41]} Qa8 {[%emt 0:05:07]} 22. Ne1 {[%emt 0:01:09]} Bxg2 {[%emt 0:02:44]} 23. Nxg2 {[%emt 0:00:05]} Rc8 {[%emt 0:01:20]} 24. Nf4 {[%emt 0:01:40]} Nb6 {[%emt 0:02:13]} 25. Rfd1 {[%emt 0:03:31]} b3 {[%emt 0:08:00]} 26. d5 {[%emt 0:10:22]} Nxd5 {[%emt 0:01:41]} 27. Nxd5 {[%emt 0:00:02]} exd5 {[%emt 0:00:07]} 28. Qf5 {[%emt 0:01:01]} Qc6 {[%emt 0:10:39]} 29. Bd4 {[%emt 0:08:43]} Qe6 {[%emt 0:01:13]} 30. Qf4 {[%emt 0:00:47]} h6 {[%emt 0:00:58]} 31. h4 {[%emt 0:01:53]} g5 {[%emt 0:02:08]} 32. Qf3 {[%emt 0:01:59]} gxh4 {[%emt 0:02:06]} 33. gxh4 {[%emt 0:01:10]} Bxh4 {[%emt 0:00:22]} 34. Bc3 {[%emt 0:01:16]} Bg5 {[%emt 0:01:06]} 35. Rb1 {[%emt 0:00:33]} Rd8 {[%emt 0:01:52]} 36. Kh1 {[%emt 0:01:05]} Kh7 {[%emt 0:00:57]} 37. Rd4 {[%emt 0:01:22]} Ra7 {[%emt 0:01:55]} 38. Rbd1 {[%emt 0:00:46]} Rad7 {[%emt 0:01:47]} 39. Ba5 {[%emt 0:00:48]} Rg8 {[%emt 0:01:12]} 40. Rxd5 {[%emt 0:00:44]} Rxd5 {[%emt 0:00:41]} 41. Rxd5 {[%emt 0:50:16]} Qg6 {[%emt 0:27:09]} 42. Rd4 {[%emt 0:00:00]} Bd2 {[%emt 0:02:55]} 43. Qe4 {[%emt 0:00:00]} Qxe4+ {[%emt 0:00:25]} 44. Rxe4 {[%emt 0:00:00]} Bxa5 {[%emt 0:00:10]} 45. Rxc4 {[%emt 0:00:00]} Rd8 {[%emt 0:02:11]} 0-1

[Event "4NCL Div 2 2024-25"]
[Site "England"]
[Date "2025.04.05"]
[Round "7.3"]
[White "Zakarian, Dimitrios Levon"]
[Black "Kanyamarala, Trisha"]
[Result "0-1"]
[Annotator "ChessBase"]
[ECO "D38"]
[WhiteElo "1968"]
[BlackElo "2185"]
[PlyCount "72"]
[EventDate "2024.11.23"]
[EventType "team-tourn"]
[EventCountry "ENG"]
[SourceTitle "playchess.com"]
[Source "ChessBase"]
[SourceQuality "1"]
[TimeControl "40/6000+30:3000+30"]

1. d4 {[%emt 0:10:01]} Nf6 {[%emt 0:10:17]} 2. c4 {[%emt 0:00:10]} e6 {[%emt 0:00:14]} 3. Nf3 {[%emt 0:00:22]} d5 {[%emt 0:00:26]} 4. Nc3 {[%emt 0:00:25]} Bb4 {[%emt 0:00:22]} 5. Qb3 {[%emt 0:00:07]} a5 {[%emt 0:00:32]} 6. a3 {[%emt 0:00:48]} a4 {[%emt 0:01:57]} 7. Qc2 {[%emt 0:02:09]} Bxc3+ {[%emt 0:00:18]} 8. Qxc3 {[%emt 0:00:38]} Ne4 {[%emt 0:00:14]} 9. Qc2 {[%emt 0:00:49]} c5 {[%emt 0:01:46]} 10. dxc5 {[%emt 0:05:28]} O-O {[%emt 0:13:08]} 11. e3 {[%emt 0:02:54]} Nd7 {[%emt 0:06:12]} 12. Be2 {[%emt 0:05:21]} Ndxc5 {[%emt 0:03:12]} 13. Nd2 {[%emt 0:03:04]} Bd7 {[%emt 0:10:55]} 14. Nxe4 {[%emt 0:16:13]} dxe4 {[%emt 0:05:29]} 15. Bd2 {[%emt 0:03:48]} Bc6 {[%emt 0:04:54]} 16. O-O {[%emt 0:00:38]} Re8 {[%emt 0:05:54]} 17. Rad1 {[%emt 0:09:36]} Qg5 {[%emt 0:04:12]} 18. Bb4 {[%emt 0:06:54]} Nd3 {[%emt 0:01:29]} 19. f4 {[%emt 0:05:35]} Qg6 {[%emt 0:04:24]} 20. Rd2 {[%emt 0:02:23]} Red8 {[%emt 0:05:30]} 21. Rfd1 {[%emt 0:02:50]} e5 {[%emt 0:05:14]} 22. g3 {[%emt 0:07:51]} h5 {[%emt 0:04:28]} 23. Bxd3 {[%emt 0:04:11]} exd3 {[%emt 0:00:41]} 24. Rxd3 {[%emt 0:00:10]} Rxd3 {[%emt 0:00:30]} 25. Qxd3 {[%emt 0:00:05]} Qg4 {[%emt 0:01:25]} 26. Rf1 {[%emt 0:01:30]} h4 {[%emt 0:05:36]} 27. e4 {[%emt 0:03:22]} Re8 {[%emt 0:05:43]} 28. Bc3 {[%emt 0:02:44]} f5 {[%emt 0:02:22]} 29. Qf3 {[%emt 0:08:47]} Qg6 {[%emt 0:00:30]} 30. fxe5 {[%emt 0:01:42]} Bxe4 {[%emt 0:00:46]} 31. Qf4 {[%emt 0:00:08]} Rd8 {[%emt 0:00:42]} 32. c5 {[%emt 0:01:36]} Qc6 {[%emt 0:01:41]} 33. gxh4 {[%emt 0:01:26]} Rd3 {[%emt 0:02:09]} 34. e6 {[%emt 0:01:14]} Qxc5+ {[%emt 0:00:57]} 35. Qf2 {[%emt 0:00:09]} Qe7 {[%emt 0:00:36]} 36. h5 {[%emt 0:02:11]} Qg5+ {[%emt 0:00:39]} 0-1

[Event "4NCL Div 2 2024-25"]
[Site "England"]
[Date "2025.04.05"]
[Round "7.4"]
[White "Jackson, Edward"]
[Black "Pozimski, Szymon"]
[Result "1-0"]
[Annotator "NA"]
[ECO "B01"]
[WhiteElo "2132"]
[BlackElo "2003"]
[PlyCount "58"]
[EventDate "2024.11.23"]
[EventType "team-tourn"]
[EventCountry "ENG"]
[SourceTitle "playchess.com"]
[Source "ChessBase"]
[SourceQuality "1"]
[TimeControl "40/6000+30:3000+30"]

1. e4 {[%emt 0:12:09]} d5 {[%emt 0:10:01]} 2. exd5 {[%emt 0:00:10]} Qxd5 {[%emt 0:00:01]} 3. Nc3 {[%emt 0:00:11]} Qd6 {[%emt 0:00:02]} 4. d4 {[%emt 0:00:42]} Nf6 {[%emt 0:00:01]} 5. Nf3 {[%emt 0:00:35]} g6 {[%emt 0:00:03]} 6. Bc4 {[%emt 0:02:12]} c6 {[%emt 0:07:23]} 7. O-O {[%emt 0:03:58]} Be6 {[%emt 0:11:04]} 8. Bxe6 {[%emt 0:04:42]} Qxe6 {[%emt 0:00:01]} 9. b3 {[%emt 0:03:57]} Qd6 {[%emt 0:04:26]} 10. a4 {[%emt 0:01:10]} e6 {[%emt 0:07:41]} 11. Ne5 {[%emt 0:04:32]} Nbd7 {[%emt 0:12:37]} 12. Qf3 {[%emt 0:03:27]} Nxe5 {[%emt 0:13:42]} 13. dxe5 {[%emt 0:11:23]} Qxe5 {[%emt 0:00:15]} 14. a5 {[%emt 0:10:17]} Bd6 {[%emt 0:08:41]} 15. g3 {[%emt 0:00:18]} Qf5 {[%emt 0:04:00]} 16. Qe2 {[%emt 0:13:04]} O-O {[%emt 0:05:56]} 17. Ra4 {[%emt 0:01:54]} Rfd8 {[%emt 0:06:16]} 18. Re1 {[%emt 0:07:19]} Qh5 {[%emt 0:05:16]} 19. Qxh5 {[%emt 0:06:49]} Nxh5 {[%emt 0:00:05]} 20. Bg5 {[%emt 0:00:20]} Re8 {[%emt 0:04:21]} 21. Rd1 {[%emt 0:07:01]} Be7 {[%emt 0:00:30]} 22. Bxe7 {[%emt 0:02:06]} Rxe7 {[%emt 0:00:01]} 23. Ne4 {[%emt 0:00:38]} Kg7 {[%emt 0:01:13]} 24. Rb4 {[%emt 0:06:39]} Nf6 {[%emt 0:00:45]} 25. Nc5 {[%emt 0:00:18]} Rb8 {[%emt 0:02:15]} 26. c4 {[%emt 0:01:11]} e5 {[%emt 0:03:39]} 27. Rd6 {[%emt 0:01:00]} e4 {[%emt 0:00:47]} 28. Rxc6 {[%emt 0:01:02]} e3 {[%emt 0:02:56]} 29. fxe3 {[%emt 0:00:04]} Ne4 {[%emt 0:00:00]} 1-0

[Event "4NCL Div 2 2024-25"]
[Site "England"]
[Date "2025.04.05"]
[Round "7.5"]
[White "Khoury, Theo"]
[Black "McLean, Robert"]
[Result "1/2-1/2"]
[Annotator "ChessBase"]
[ECO "C01"]
[WhiteElo "2194"]
[BlackElo "2011"]
[PlyCount "96"]
[EventDate "2024.11.23"]
[EventType "team-tourn"]
[EventCountry "ENG"]
[SourceTitle "playchess.com"]
[Source "ChessBase"]
[SourceQuality "1"]
[TimeControl "40/6000+30:3000+30"]

1. e4 {[%emt 0:10:04]} e6 {[%emt 0:14:25]} 2. d4 {[%emt 0:00:15]} d5 {[%emt 0:00:03]} 3. Nc3 {[%emt 0:00:05]} Bb4 {[%emt 0:00:24]} 4. exd5 {[%emt 0:01:16]} exd5 {[%emt 0:00:07]} 5. Bd3 {[%emt 0:00:04]} Nf6 {[%emt 0:01:21]} 6. Nge2 {[%emt 0:00:49]} O-O {[%emt 0:00:32]} 7. O-O {[%emt 0:00:05]} Re8 {[%emt 0:00:30]} 8. Bf4 {[%emt 0:03:29]} Bg4 {[%emt 0:03:09]} 9. a3 {[%emt 0:02:22]} Bf8 {[%emt 0:05:27]} 10. Qd2 {[%emt 0:02:06]} Bh5 {[%emt 0:03:50]} 11. Ng3 {[%emt 0:08:46]} Bg6 {[%emt 0:00:33]} 12. Rfe1 {[%emt 0:01:19]} c6 {[%emt 0:02:13]} 13. Rxe8 {[%emt 0:03:58]} Qxe8 {[%emt 0:07:11]} 14. Re1 {[%emt 0:00:13]} Qd8 {[%emt 0:00:42]} 15. Nd1 {[%emt 0:09:48]} Nbd7 {[%emt 0:02:40]} 16. f3 {[%emt 0:02:00]} Qb6 {[%emt 0:03:19]} 17. c3 {[%emt 0:04:04]} c5 {[%emt 0:14:21]} 18. Bxg6 {[%emt 0:06:32]} hxg6 {[%emt 0:00:15]} 19. dxc5 {[%emt 0:00:21]} Bxc5+ {[%emt 0:01:02]} 20. Kh1 {[%emt 0:07:41]} Qb3 {[%emt 0:06:26]} 21. Nf2 {[%emt 0:03:46]} Nb6 {[%emt 0:06:33]} 22. Nd3 {[%emt 0:02:49]} Bf8 {[%emt 0:01:22]} 23. Qd1 {[%emt 0:02:56]} Qxd1 {[%emt 0:07:47]} 24. Rxd1 {[%emt 0:00:05]} Nc4 {[%emt 0:00:34]} 25. Ne2 {[%emt 0:01:48]} Re8 {[%emt 0:04:07]} 26. Nd4 {[%emt 0:00:10]} Nd7 {[%emt 0:03:32]} 27. h4 {[%emt 0:10:56]} Nc5 {[%emt 0:00:55]} 28. Nxc5 {[%emt 0:01:00]} Bxc5 {[%emt 0:00:03]} 29. Nb3 {[%emt 0:02:32]} Bb6 {[%emt 0:08:39]} 30. Rxd5 {[%emt 0:04:26]} Re2 {[%emt 0:00:51]} 31. Nd2 {[%emt 0:02:09]} Nxb2 {[%emt 0:02:30]} 32. Ne4 {[%emt 0:00:33]} Nc4 {[%emt 0:01:02]} 33. Rd7 {[%emt 0:00:36]} f6 {[%emt 0:02:53]} 34. Rxb7 {[%emt 0:01:56]} Ra2 {[%emt 0:01:37]} 35. Rb8+ {[%emt 0:01:15]} Kf7 {[%emt 0:00:51]} 36. Rc8 {[%emt 0:05:19]} Nxa3 {[%emt 0:00:21]} 37. c4 {[%emt 0:00:05]} Rc2 {[%emt 0:02:53]} 38. c5 {[%emt 0:00:12]} Ba5 {[%emt 0:00:27]} 39. Rb8 {[%emt 0:04:56]} Ke6 {[%emt 0:02:43]} 40. Bd6 {[%emt 0:02:20]} Nc4 {[%emt 0:00:32]} 41. Re8+ {[%emt 0:27:38]} Kd5 {[%emt 0:20:52]} 42. Rg8 {[%emt 0:02:27]} f5 {[%emt 0:02:53]} 43. Ng5 {[%emt 0:00:22]} Nxd6 {[%emt 0:01:54]} 44. cxd6 {[%emt 0:00:07]} Kxd6 {[%emt 0:01:10]} 45. Rxg7 {[%emt 0:00:07]} Be1 {[%emt 0:00:34]} 46. Rxa7 {[%emt 0:08:12]} Bg3 {[%emt 0:01:18]} 47. Ra1 {[%emt 0:00:43]} Bxh4 {[%emt 0:01:13]} 48. Nh3 {[%emt 0:00:20]} Bg3 {[%emt 0:02:25]} 1/2-1/2

[Event "4NCL Div 2 2024-25"]
[Site "England"]
[Date "2025.04.05"]
[Round "7.6"]
[White "Longson, Alexander"]
[Black "Udovenko, Daniel"]
[Result "1/2-1/2"]
[Annotator "ChessBase"]
[ECO "E70"]
[WhiteElo "2250"]
[BlackElo "1941"]
[PlyCount "36"]
[EventDate "2024.11.23"]
[EventType "team-tourn"]
[EventCountry "ENG"]
[SourceTitle "playchess.com"]
[Source "ChessBase"]
[SourceQuality "1"]
[TimeControl "40/6000+30:3000+30"]

1. e4 {[%emt 0:10:06]} c5 {[%emt 0:10:03]} 2. Nf3 {[%emt 0:00:15]} d6 {[%emt 0:00:02]} 3. d4 {[%emt 0:00:23]} cxd4 {[%emt 0:00:04]} 4. Nxd4 {[%emt 0:00:08]} Nf6 {[%emt 0:00:03]} 5. Bd3 {[%emt 0:00:10]} a6 {[%emt 0:01:21]} 6. c4 {[%emt 0:01:01]} g6 {[%emt 0:02:42]} 7. Nc3 {[%emt 0:02:49]} Bg7 {[%emt 0:00:14]} 8. O-O {[%emt 0:02:38]} O-O {[%emt 0:00:26]} 9. h3 {[%emt 0:02:35]} Nc6 {[%emt 0:03:27]} 10. Nde2 {[%emt 0:00:55]} Bd7 {[%emt 0:23:39]} 11. Be3 {[%emt 0:05:11]} Ne5 {[%emt 0:02:28]} 12. f4 {[%emt 0:20:04]} Nxd3 {[%emt 0:01:01]} 13. Qxd3 {[%emt 0:00:07]} b5 {[%emt 0:01:32]} 14. Nd4 {[%emt 0:12:38]} e5 {[%emt 0:25:03]} 15. fxe5 {[%emt 0:18:13]} dxe5 {[%emt 0:00:48]} 16. Nf3 {[%emt 0:02:18]} bxc4 {[%emt 0:13:33]} 17. Qxc4 {[%emt 0:02:11]} Qb8 {[%emt 0:02:52]} 18. Rf2 {[%emt 0:02:51]} Rc8 {[%emt 0:04:08]} 1/2-1/2

[Event "4NCL Div 2 2024-25"]
[Site "England"]
[Date "2025.04.05"]
[Round "7.7"]
[White "Hansen, Hans-Peter"]
[Black "Rawlinson, Aidan M"]
[Result "1-0"]
[Annotator "ChessBase"]
[ECO "B08"]
[WhiteElo "2169"]
[BlackElo "2076"]
[PlyCount "45"]
[EventDate "2024.11.23"]
[EventType "team-tourn"]
[EventCountry "ENG"]
[SourceTitle "playchess.com"]
[Source "ChessBase"]
[SourceQuality "1"]
[TimeControl "40/6000+30:3000+30"]

1. d4 {[%emt 0:10:03]} g6 {[%emt 0:10:10]} 2. e4 {[%emt 0:00:08]} Bg7 {[%emt 0:00:05]} 3. Nc3 {[%emt 0:00:25]} d6 {[%emt 0:00:07]} 4. Nf3 {[%emt 0:00:11]} Nf6 {[%emt 0:00:07]} 5. Be2 {[%emt 0:00:39]} O-O {[%emt 0:00:07]} 6. O-O {[%emt 0:00:09]} c6 {[%emt 0:00:07]} 7. Bg5 {[%emt 0:05:25]} Nbd7 {[%emt 0:00:23]} 8. a4 {[%emt 0:05:46]} Qc7 {[%emt 0:00:52]} 9. Re1 {[%emt 0:17:12]} b6 {[%emt 0:01:34]} 10. Qd2 {[%emt 0:04:28]} Re8 {[%emt 0:00:24]} 11. Rad1 {[%emt 0:03:47]} Bb7 {[%emt 0:10:29]} 12. Bc4 {[%emt 0:07:33]} Nxe4 {[%emt 0:21:46]} 13. Rxe4 {[%emt 0:07:28]} d5 {[%emt 0:00:21]} 14. Bxd5 {[%emt 0:00:13]} cxd5 {[%emt 0:00:13]} 15. Rxe7 {[%emt 0:00:05]} Rxe7 {[%emt 0:03:55]} 16. Bxe7 {[%emt 0:00:03]} Nf6 {[%emt 0:00:24]} 17. Bxf6 {[%emt 0:05:11]} Bxf6 {[%emt 0:00:16]} 18. Re1 {[%emt 0:05:22]} Rc8 {[%emt 0:03:38]} 19. Ne5 {[%emt 0:08:45]} Be7 {[%emt 0:04:53]} 20. Qf4 {[%emt 0:05:34]} f6 {[%emt 0:08:07]} 21. Nd3 {[%emt 0:00:06]} Qxf4 {[%emt 0:00:25]} 22. Nxf4 {[%emt 0:00:06]} Bb4 {[%emt 0:01:13]} 23. Nfxd5 {[%emt 0:03:02]} 1-0

[Event "4NCL Div 2 2024-25"]
[Site "England"]
[Date "2025.04.05"]
[Round "7.8"]
[White "Longson, Sarah N"]
[Black "Brackmann, Hendrik"]
[Result "1/2-1/2"]
[Annotator "NA"]
[ECO "B23"]
[WhiteElo "1929"]
[BlackElo "2040"]
[PlyCount "45"]
[EventDate "2024.11.23"]
[EventType "team-tourn"]
[EventCountry "ENG"]
[SourceTitle "playchess.com"]
[Source "ChessBase"]
[SourceQuality "1"]
[TimeControl "40/6000+30:3000+30"]

1. e4 {[%emt 0:10:01]} c5 {[%emt 0:12:14]} 2. Nc3 {[%emt 0:00:13]} Nc6 {[%emt 0:00:08]} 3. Bb5 {[%emt 0:00:11]} Nd4 {[%emt 0:00:08]} 4. Nf3 {[%emt 0:00:06]} a6 {[%emt 0:00:10]} 5. Bd3 {[%emt 0:00:05]} g6 {[%emt 0:00:14]} 6. Nxd4 {[%emt 0:00:06]} cxd4 {[%emt 0:00:10]} 7. Ne2 {[%emt 0:00:03]} d5 {[%emt 0:00:34]} 8. c3 {[%emt 0:00:43]} dxe4 {[%emt 0:00:29]} 9. Bxe4 {[%emt 0:00:21]} dxc3 {[%emt 0:00:11]} 10. bxc3 {[%emt 0:00:17]} Nf6 {[%emt 0:00:10]} 11. Bf3 {[%emt 0:00:05]} Bg7 {[%emt 0:00:24]} 12. d4 {[%emt 0:03:54]} O-O {[%emt 0:02:05]} 13. O-O {[%emt 0:00:26]} Bg4 {[%emt 0:01:17]} 14. Bxb7 {[%emt 0:15:18]} Rb8 {[%emt 0:01:07]} 15. Bxa6 {[%emt 0:03:47]} Ne4 {[%emt 0:00:25]} 16. Qc2 {[%emt 0:28:20]} Bxe2 {[%emt 0:01:35]} 17. Bxe2 {[%emt 0:00:07]} Nxc3 {[%emt 0:00:17]} 18. Bf4 {[%emt 0:07:23]} Bxd4 {[%emt 0:27:02]} 19. Bxb8 {[%emt 0:00:33]} Nxe2+ {[%emt 0:00:10]} 20. Qxe2 {[%emt 0:00:03]} Bxa1 {[%emt 0:00:10]} 21. Rxa1 {[%emt 0:03:59]} Qxb8 {[%emt 0:00:08]} 22. Qxe7 {[%emt 0:03:52]} Qb2 {[%emt 0:00:29]} 23. Qe1 {[%emt 0:05:25]} 1/2-1/2

[Event "4NCL Div 2 2024-25"]
[Site "England"]
[Date "2025.04.05"]
[Round "7.9"]
[White "Mazurkiewicz, Michal"]
[Black "Kacprzak, Kacper"]
[Result "1/2-1/2"]
[Annotator "ChessBase"]
[ECO "A05"]
[WhiteElo "2259"]
[BlackElo "2291"]
[PlyCount "77"]
[EventDate "2024.11.23"]
[EventType "team-tourn"]
[EventCountry "ENG"]
[SourceTitle "playchess.com"]
[Source "ChessBase"]
[SourceQuality "1"]
[TimeControl "40/6000+30:3000+30"]

1. e4 {[%emt 0:11:12]} c5 {[%emt 0:10:03]} 2. Nf3 {[%emt 0:00:04]} d6 {[%emt 0:00:06]} 3. g3 {[%emt 0:00:51]} Nf6 {[%emt 0:00:32]} 4. d3 {[%emt 0:00:04]} g6 {[%emt 0:00:24]} 5. Bg2 {[%emt 0:00:04]} Bg7 {[%emt 0:00:09]} 6. O-O {[%emt 0:00:07]} O-O {[%emt 0:00:07]} 7. Re1 {[%emt 0:00:07]} Nc6 {[%emt 0:00:34]} 8. c3 {[%emt 0:00:10]} e5 {[%emt 0:00:38]} 9. a3 {[%emt 0:00:09]} b5 {[%emt 0:00:57]} 10. h3 {[%emt 1:32:42]} a5 {[%emt 0:05:39]} 11. Be3 {[%emt 0:00:00]} a4 {[%emt 0:00:45]} 12. d4 {[%emt 0:00:00]} Qe7 {[%emt 0:04:48]} 13. Nbd2 {[%emt 0:00:00]} Nd7 {[%emt 0:04:38]} 14. d5 {[%emt 0:00:00]} Na5 {[%emt 0:00:36]} 15. c4 {[%emt 0:00:00]} bxc4 {[%emt 0:08:51]} 16. Qxa4 {[%emt 0:00:00]} Nb6 {[%emt 0:00:07]} 17. Qc2 {[%emt 0:00:00]} Bd7 {[%emt 0:00:07]} 18. Nh4 {[%emt 0:00:00]} Rfb8 {[%emt 0:02:46]} 19. Bf1 {[%emt 0:00:00]} Rb7 {[%emt 0:05:34]} 20. Rab1 {[%emt 0:00:00]} Qd8 {[%emt 0:10:32]} 21. Nxc4 {[%emt 0:00:00]} Nbxc4 {[%emt 0:07:35]} 22. Bxc4 {[%emt 0:00:00]} Nxc4 {[%emt 0:00:35]} 23. Qxc4 {[%emt 0:00:00]} Qb8 {[%emt 0:00:24]} 24. Qc1 {[%emt 0:00:00]} Bxh3 {[%emt 0:01:50]} 25. Nf3 {[%emt 0:00:00]} Bd7 {[%emt 0:02:28]} 26. Kg2 {[%emt 0:00:00]} Bb5 {[%emt 0:02:03]} 27. Qd2 {[%emt 0:00:00]} Bc4 {[%emt 0:01:04]} 28. b4 {[%emt 0:00:00]} cxb4 {[%emt 0:07:27]} 29. Rxb4 {[%emt 0:00:00]} Rxb4 {[%emt 0:02:49]} 30. axb4 {[%emt 0:00:00]} Ra4 {[%emt 0:03:17]} 31. Rb1 {[%emt 0:00:00]} Bb5 {[%emt 0:08:11]} 32. Qc3 {[%emt 0:00:00]} Bf6 {[%emt 0:01:34]} 33. Bh6 {[%emt 0:00:00]} Ra8 {[%emt 0:01:13]} 34. Ng5 {[%emt 0:00:17]} Qd8 {[%emt 0:01:21]} 35. Qe3 {[%emt 0:00:37]} Ra2 {[%emt 0:03:14]} 36. Rh1 {[%emt 0:03:28]} Re2 {[%emt 0:01:01]} 37. Qc1 {[%emt 0:00:43]} Bd3 {[%emt 0:05:15]} 38. Qc3 {[%emt 0:03:52]} Bb5 {[%emt 0:02:46]} 39. Qc1 {[%emt 0:02:05]} 1/2-1/2

[Event "4NCL Div 2 2024-25"]
[Site "England"]
[Date "2025.04.05"]
[Round "7.10"]
[White "Starosta, Martyna"]
[Black "Gallana, Marco"]
[Result "0-1"]
[Annotator "ChessBase"]
[ECO "B56"]
[WhiteElo "2309"]
[BlackElo "2216"]
[PlyCount "94"]
[EventDate "2024.11.23"]
[EventType "team-tourn"]
[EventCountry "ENG"]
[SourceTitle "playchess.com"]
[Source "ChessBase"]
[SourceQuality "1"]
[TimeControl "40/6000+30:3000+30"]

1. e4 {[%emt 0:10:03]} c5 {[%emt 0:11:32]} 2. Nf3 {[%emt 0:00:05]} Nc6 {[%emt 0:00:15]} 3. d4 {[%emt 0:00:04]} cxd4 {[%emt 0:00:07]} 4. Nxd4 {[%emt 0:00:04]} Nf6 {[%emt 0:01:47]} 5. Nc3 {[%emt 0:00:06]} e5 {[%emt 0:00:18]} 6. Nde2 {[%emt 1:33:08]} d6 {[%emt 0:02:36]} 7. g3 {[%emt 0:00:00]} Be7 {[%emt 0:02:21]} 8. Bg2 {[%emt 0:00:00]} O-O {[%emt 0:01:19]} 9. O-O {[%emt 0:00:00]} Be6 {[%emt 0:01:59]} 10. Nd5 {[%emt 0:00:00]} Rc8 {[%emt 0:04:48]} 11. b3 {[%emt 0:00:00]} b5 {[%emt 0:07:19]} 12. Ba3 {[%emt 0:00:00]} Bxd5 {[%emt 0:04:19]} 13. exd5 {[%emt 0:00:00]} Nb8 {[%emt 0:00:46]} 14. Kh1 {[%emt 0:00:00]} Nbd7 {[%emt 0:03:54]} 15. Qd2 {[%emt 0:00:00]} Qb6 {[%emt 0:07:01]} 16. Bb4 {[%emt 0:00:00]} Nc5 {[%emt 0:05:22]} 17. Rac1 {[%emt 0:00:00]} Nce4 {[%emt 0:10:07]} 18. Qe1 {[%emt 0:00:00]} Bd8 {[%emt 0:00:55]} 19. Nc3 {[%emt 0:00:00]} Nc5 {[%emt 0:08:11]} 20. Ne2 {[%emt 0:00:00]} a5 {[%emt 0:04:52]} 21. Bd2 {[%emt 0:00:00]} b4 {[%emt 0:00:27]} 22. Be3 {[%emt 0:00:00]} Qb7 {[%emt 0:00:32]} 23. Bxc5 {[%emt 0:00:00]} Rxc5 {[%emt 0:00:11]} 24. c4 {[%emt 0:00:00]} bxc3 {[%emt 0:10:12]} 25. Nxc3 {[%emt 0:00:00]} Bb6 {[%emt 0:00:56]} 26. Qd2 {[%emt 0:00:00]} Rfc8 {[%emt 0:07:52]} 27. Ne4 {[%emt 0:00:00]} Nxe4 {[%emt 0:04:42]} 28. Bxe4 {[%emt 0:00:00]} g6 {[%emt 0:00:30]} 29. Rxc5 {[%emt 0:01:50]} Rxc5 {[%emt 0:00:10]} 30. g4 {[%emt 0:01:29]} Qc7 {[%emt 0:01:10]} 31. Kg2 {[%emt 0:02:21]} Rc3 {[%emt 0:01:16]} 32. Bd3 {[%emt 0:02:45]} Bd4 {[%emt 0:01:08]} 33. Bc4 {[%emt 0:01:24]} Qe7 {[%emt 0:02:17]} 34. f3 {[%emt 0:03:17]} Qh4 {[%emt 0:01:10]} 35. h3 {[%emt 0:00:41]} f5 {[%emt 0:02:46]} 36. gxf5 {[%emt 0:00:31]} gxf5 {[%emt 0:00:06]} 37. Bd3 {[%emt 0:00:36]} f4 {[%emt 0:02:14]} 38. Be4 {[%emt 0:00:33]} Rc7 {[%emt 0:01:26]} 39. Rh1 {[%emt 0:00:19]} Qg3+ {[%emt 0:00:22]} 40. Kf1 {[%emt 0:00:06]} Be3 {[%emt 0:00:16]} 41. Qh2 {[%emt 0:24:00]} Rc1+ {[%emt 0:23:17]} 42. Ke2 {[%emt 0:00:05]} Rxh1 {[%emt 0:00:40]} 43. Qxh1 {[%emt 0:01:50]} Qf2+ {[%emt 0:00:06]} 44. Kd3 {[%emt 0:00:04]} Qd2+ {[%emt 0:00:05]} 45. Kc4 {[%emt 0:00:03]} Qd4+ {[%emt 0:00:06]} 46. Kb5 {[%emt 0:00:04]} Qc5+ {[%emt 0:00:04]} 47. Ka6 {[%emt 0:00:05]} Qb6# {[%emt 0:00:04]} 0-1